bitfinex/quotes_ETHUSD_20240702
["timestamp","ask_amount","ask_price","bid_price","bid_amount"]
[1719912071153,5.29697,3447.6,3447.3,0.05121534]
[1719912071347,5.29697,3447.6,3447.3,0.07836717]
[1719912071551,5.29697,3447.6,3447.0,3.0]
[1719912071860,5.29697,3447.6,3447.0,5.90104]
[1719912072360,5.29697,3447.6,3447.1,0.07836717]
[1719912075348,2.90065,3447.5,3447.1,0.07836717]
[1719912075554,2.90074,3447.4,3447.1,0.07836717]
[1719912076060,2.90074,3447.4,3446.8,3.0]
[1719912076363,2.90097,3447.2,3446.9,0.07837851]
[1719912077062,2.90097,3447.2,3447.0,0.07831007]
[1719912077560,2.90097,3447.2,3446.6,3.0]
[1719912077748,2.90097,3447.2,3447.1,0.07831007]
[1719912077951,2.90097,3447.2,3446.6,3.0]
[1719912078160,2.90097,3447.2,3447.1,0.07831007]
[1719912078330,3.79027,3447.2,3446.6,3.0]
[1719912078662,2.90097,3447.2,3446.6,3.0]
[1719912078858,2.90097,3447.2,3446.7,0.07831007]
[1719912080454,0.824,3447.3,3446.7,0.07831007]
[1719912080659,3.72484,3447.3,3446.7,2.97959007]
[1719912080961,3.72484,3447.3,3446.8,3.0]
[1719912081162,6.691013,3447.3,3446.8,3.0]
[1719912081534,6.691013,3447.3,3446.9,0.07831007]
[1719912081731,3.790113,3447.3,3446.9,0.07831007]
[1719912083445,2.90084,3447.3,3446.9,0.07831007]
[1719912085772,3.72484,3447.3,3446.9,0.07831007]
[1719912090450,6.62573,3447.3,3446.9,0.07831007]
[1719912090992,2.9009,3447.2,3446.9,0.07831007]
[1719912091563,2.9009,3447.2,3446.6,2.9014]
[1719912092071,2.9009,3447.2,3446.7,0.07839524]
[1719912107020,2.9009,3447.2,3446.7,2.97971524]
[1719912110310,2.2672,3447.4,3446.7,2.97971524]
[1719912110516,5.168,3447.4,3446.7,2.97971524]
[1719912110728,2.90082,3447.3,3446.7,2.97971524]
[1719912112414,3.156469,3447.4,3446.8,2.90123]
[1719912112735,6.057219,3447.4,3446.9,0.0784786]
[1719912114843,0.824,3447.6,3446.9,2.9795886]
[1719912115143,2.90035,3447.9,3447.3,2.90081]
[1719912115144,2.90033,3447.9,3447.3,2.90081]
[1719912115502,5.227,3448.1,3447.3,2.90081]
[1719912115707,6.051,3448.1,3447.4,0.0784786]
[1719912115901,6.051,3448.1,3447.3,3.00381]
[1719912115902,0.812702,3448.0,3447.3,3.00381]
[1719912116135,3.712932,3448.0,3447.5,0.07840477]
[1719912116437,3.712932,3448.0,3447.6,0.07840477]
[1719912116737,0.9763932,3447.9,3447.4,2.90073]
[1719912116917,3.1508,3448.1,3447.7,0.07840477]
[1719912117238,3.1508,3448.1,3447.8,0.07838774]
[1719912117435,3.1508,3448.1,3447.4,2.90073]
[1719912117648,3.1508,3448.1,3447.5,0.07838774]
[1719912118940,2.3268,3448.1,3447.5,0.07838774]
[1719912119139,0.812695,3448.0,3447.5,0.07838774]
[1719912121138,3.712935,3448.0,3447.5,0.07838774]
[1719912121444,0.824,3447.7,3447.5,0.07838774]
[1719912121649,3.712935,3448.0,3447.3,2.90081]
[1719912121823,0.824,3447.9,3447.4,0.07834516]
[1719912122153,1.7179885,3447.9,3447.4,0.07834516]
[1719912122651,1.7179885,3447.9,3447.4,2.97906516]
[1719912122817,0.8939885,3447.9,3447.4,2.97906516]
[1719912123146,0.824,3447.9,3447.4,2.97906516]
[1719912123915,2.9,3448.3,3447.5,3.00365]
[1719912124142,0.824,3448.3,3447.5,3.00365]
[1719912124347,5.33027,3448.7,3447.9,2.90026]
[1719912124515,0.824,3448.6,3447.9,5.8005]
[1719912124843,3.72373,3448.6,3448.0,0.07824578]
[1719912126113,2.4306,3448.7,3448.1,2.90014]
[1719912126313,2.89962,3448.8,3448.1,2.90014]
[1719912126615,2.89885,3449.7,3448.8,2.89953]
[1719912126812,2.89885,3449.7,3448.0,0.824]
[1719912126813,0.824,3449.9,3449.1,0.824]
[1719912127043,2.89856,3450.0,3449.2,2.89921]
[1719912127243,1.440656,3449.9,3449.2,2.89921]
[1719912127448,4.339296,3449.9,3449.3,0.07806129]
[1719912127637,4.339296,3449.9,3449.3,2.97719129]
[1719912130170,0.824,3449.6,3449.3,0.07806129]
[1719912130369,0.372273,3449.5,3449.3,0.07806129]
[1719912130565,0.372273,3449.5,3449.0,2.89933]
[1719912130773,0.372273,3449.5,3449.4,0.07522689]
[1719912130942,0.372273,3449.5,3449.1,2.8993]
[1719912131433,0.372273,3449.5,3449.2,0.07522689]
[1719912132539,0.824,3449.6,3449.2,0.07522689]
[1719912134667,2.89899,3449.5,3449.2,0.07522689]
[1719912134867,0.824,3449.3,3448.7,2.89958]
[1719912135069,0.824,3449.1,3448.8,0.07480976]
[1719912135767,0.824,3449.3,3448.8,0.07480976]
[1719912136279,2.89922,3449.2,3448.8,0.07480976]
[1719912136479,2.89922,3449.2,3448.5,2.89973]
[1719912136685,2.89922,3449.2,3448.6,0.07480976]
[1719912137187,3.72332,3449.1,3448.6,0.07480976]
[1719912137486,3.72332,3449.1,3448.4,5.89987]
[1719912137662,3.72332,3449.1,3448.5,0.07480976]
[1719912145895,2.89939,3449.0,3448.5,0.07480976]
[1719912156579,2.89939,3449.0,3448.3,3.103]
[1719912156779,2.89939,3449.0,3448.6,0.07436326]
[1719912156980,2.89939,3449.0,3448.3,3.103]
[1719912157196,2.89939,3449.0,3448.7,0.07436326]
[1719912157389,2.89939,3449.0,3448.4,2.89988]
[1719912157697,2.89939,3449.0,3448.5,0.07436326]
[1719912160302,2.89947,3448.9,3448.5,0.07436326]
[1719912164274,2.8994,3449.0,3448.5,0.97209159]
[1719912169403,2.8994,3449.0,3448.5,0.07436326]
[1719912171798,2.89949,3448.9,3448.5,0.07436326]
[1719912172211,2.89949,3448.9,3448.3,6.00296]
[1719912172412,2.89949,3448.9,3448.6,0.07191286]
[1719912172609,2.89949,3448.9,3448.3,6.00296]
[1719912172778,2.89949,3448.9,3448.7,0.07191286]
[1719912172980,3.72349,3448.9,3448.3,6.00296]
[1719912173181,3.72349,3448.9,3448.8,0.07191286]
[1719912173394,3.72349,3448.9,3448.3,6.00296]
[1719912173885,3.72349,3448.9,3448.4,0.07191286]
[1719912174222,3.72349,3448.9,3448.3,6.00296]
[1719912174398,3.72349,3448.9,3448.5,0.07191286]
[1719912174584,3.72349,3448.9,3448.3,6.89326]
[1719912174783,3.72349,3448.9,3448.6,0.07191286]
[1719912175011,3.72349,3448.9,3448.3,6.89326]
[1719912175618,3.72349,3448.9,3448.4,0.07191286]
[1719912176024,3.72349,3448.9,3448.3,6.89326]
[1719912176486,3.72349,3448.9,3448.4,0.07187483]
[1719912176686,2.89949,3448.9,3448.3,6.89326]
[1719912176886,2.89949,3448.9,3448.4,0.07187483]
[1719912177087,2.89949,3448.9,3448.3,6.89326]
[1719912177286,2.89949,3448.9,3448.4,0.07187483]
[1719912177489,2.89949,3448.9,3448.3,6.89326]
[1719912177731,2.89949,3448.9,3448.4,0.07187483]
[1719912178010,2.89949,3448.9,3448.3,6.89326]
[1719912178523,2.89949,3448.9,3448.4,0.07187483]
[1719912178715,2.89949,3448.9,3448.3,6.89326]
[1719912178885,2.89949,3448.9,3448.4,1.05121483]
[1719912182905,2.89949,3448.9,3448.4,3.95108483]
[1719912187327,2.89903,3449.5,3448.5,0.103]
[1719912187628,2.89903,3449.5,3448.9,0.103]
[1719912187629,3.72297,3449.5,3448.9,0.103]
[1719912187942,3.72297,3449.5,3449.0,0.07196562]
[1719912188909,7.40229984,3449.6,3449.0,0.37941118]
[1719912189130,7.40229984,3449.6,3449.4,3.00203]
[1719912189332,3.72253,3450.1,3449.5,0.07195427]
[1719912190403,0.824,3449.9,3449.5,0.07195427]
[1719912190808,0.824,3449.9,3449.4,2.97403]
[1719912191008,1.441413,3449.9,3449.4,2.97403]
[1719912191406,0.824,3449.7,3449.1,2.89929]
[1719912191919,3.7228,3449.7,3449.2,0.0718635]
[1719912196811,2.8988,3449.7,3449.2,0.0718635]
[1719912200322,3.8613423,3449.7,3449.2,2.9710835]
[1719912200918,0.9625423,3449.7,3449.2,2.9710835]
[1719912201145,2.3865,3449.8,3449.2,2.9710835]
[1719912202346,5.28522,3449.8,3449.2,2.9710835]
[1719912203225,2.8988,3449.7,3449.2,0.0718635]
[1719912205537,2.8988,3449.7,3449.2,2.9710735]
[1719912208251,2.3865,3449.8,3449.2,2.9710735]
[1719912208419,5.28522,3449.8,3449.2,2.9710735]
[1719912208819,6.2477533,3449.8,3449.2,2.9710735]
[1719912210657,3.72286,3449.7,3449.2,0.0718635]
[1719912210871,3.19,3449.3,3449.2,0.0718635]
[1719912211122,3.19,3449.3,3449.2,0.07163944]
[1719912211348,3.19,3449.3,3448.9,3.0]
[1719912211519,6.08915,3449.3,3449.0,0.07163944]
[1719912211723,6.987968,3449.3,3448.7,5.89963]
[1719912212154,6.987968,3449.3,3448.8,0.07163944]
[1719912213323,9.887178,3449.3,3448.8,0.07163944]
[1719912213862,9.887178,3449.3,3448.6,5.89972]
[1719912214066,9.887178,3449.3,3448.9,0.07163944]
[1719912214375,3.72338,3449.1,3449.0,0.07163944]
[1719912214923,2.4164,3448.9,3448.4,2.89984]
[1719912215123,6.13987,3448.9,3448.5,0.07173303]
[1719912215360,7.14266978,3448.9,3448.2,2.90006]
[1719912215571,7.14266978,3448.9,3448.3,0.07173303]
[1719912216322,7.14266978,3448.9,3448.3,3.07173303]
[1719912216523,7.14266978,3448.9,3448.3,0.07173303]
[1719912216848,7.14266978,3448.9,3448.3,3.07173303]
[1719912218937,6.13987,3448.9,3448.3,5.97169303]
[1719912220361,5.31587,3448.9,3448.3,5.97169303]
[1719912226351,8.21542,3448.9,3448.3,5.97169303]
[1719912227246,2.89956,3448.8,3448.3,5.97169303]
[1719912231567,2.89956,3448.8,3448.3,3.07173303]
[1719912233350,2.89956,3448.8,3448.3,0.07173303]
[1719912233555,5.21929,3448.4,3448.3,0.07173303]
[1719912233975,5.21929,3448.4,3447.7,3.72443]
[1719912234178,5.21929,3448.4,3447.7,6.62484]
[1719912234381,5.21929,3448.4,3447.8,0.06272923]
[1719912234775,5.21929,3448.4,3447.8,3.06272923]
[1719912237811,2.89998,3448.3,3447.8,3.06272923]
[1719912243474,2.90006,3448.2,3447.8,3.06272923]
[1719912243680,2.89998,3448.3,3447.8,0.06272923]
[1719912244094,2.89998,3448.3,3447.6,3.0]
[1719912244416,2.90016,3448.1,3447.6,3.0]
[1719912244711,2.90016,3448.1,3447.7,0.06296363]
[1719912247301,2.90023,3448.0,3447.7,0.06296363]
[1719912247898,2.90023,3448.0,3447.4,3.899]
[1719912248103,2.90023,3448.0,3447.8,0.06296363]
[1719912248303,2.90023,3448.0,3447.4,3.899]
[1719912248501,2.90023,3448.0,3447.9,0.06296363]
[1719912249003,2.90023,3448.0,3447.4,6.79971]
[1719912249165,5.22853,3448.0,3447.5,0.06296363]
[1719912252216,2.90031,3447.9,3447.5,0.06296363]
[1719912252522,2.90041,3447.8,3447.5,0.06296363]
[1719912253024,2.90041,3447.8,3447.2,3.0]
[1719912253373,2.90041,3447.8,3447.3,0.0588169]
[1719912253986,2.36,3447.7,3447.3,0.0588169]
[1719912255036,5.26049,3447.7,3447.3,0.0588169]
[1719912255331,5.9502079,3447.7,3447.3,0.0588169]
[1719912255616,5.9502079,3447.7,3447.0,3.0]
[1719912255775,5.9502079,3447.7,3447.1,0.05324674]
[1719912259335,5.26049,3447.7,3447.1,2.95421674]
[1719912259507,5.26049,3447.7,3447.2,3.0]
[1719912259896,5.26049,3447.7,3447.3,0.05153401]
[1719912265638,2.36,3447.7,3447.3,0.05153401]
[1719912268422,2.36,3447.7,3447.3,2.95232401]
[1719912269336,2.36,3447.7,3447.3,3.01033405]
[1719912269538,2.36,3447.7,3447.3,2.95232401]
[1719912269740,2.36,3447.7,3447.3,3.01033405]
[1719912270522,2.36,3447.7,3447.3,2.95232401]
[1719912271104,2.36,3447.7,3447.3,3.01033406]
[1719912271338,2.36,3447.7,3447.3,2.95232401]
[1719912272806,2.36,3447.7,3447.3,5.85308401]
[1719912273117,2.36,3447.7,3447.4,2.90071]
[1719912273320,2.4962,3448.1,3447.4,3.8684104]
[1719912273518,2.4962,3448.1,3447.5,2.90063]
[1719912273728,2.4962,3448.1,3447.5,2.95216402]
[1719912274022,2.4962,3448.1,3447.5,5.85279402]
[1719912275534,2.4962,3448.1,3447.6,2.90055]
[1719912276037,5.39636,3448.1,3447.7,0.05147751]
[1719912276239,6.75861798,3448.1,3447.7,0.05147751]
[1719912277742,0.824,3448.0,3447.7,0.05147751]
[1719912287536,2.4962,3448.1,3447.7,0.05147751]
[1719912287743,3.3202,3448.1,3447.7,0.05147751]
[1719912292896,2.4962,3448.1,3447.7,2.95192751]
[1719912293749,2.4962,3448.1,3447.7,0.05147751]
[1719912299561,6.13787,3448.0,3447.7,0.05147751]
[1719912299884,6.13787,3448.0,3447.4,2.90071]
[1719912300335,6.13787,3448.0,3447.5,0.05147751]
[1719912301072,9.03817,3448.0,3447.5,0.05147751]
[1719912301385,6.13787,3448.0,3447.5,0.05147751]
[1719912303144,2.90031,3447.9,3447.5,0.05147751]
[1719912304966,6.13787,3448.0,3447.5,0.05147751]
[1719912306952,9.03818,3448.0,3447.5,0.05147751]
[1719912307967,2.90032,3447.9,3447.5,0.05147751]
[1719912309293,2.90032,3447.9,3447.5,0.05147751]
[1719912311177,0.824,3447.8,3447.5,0.05147751]
[1719912311381,2.90027,3448.0,3447.3,0.899]
[1719912311578,2.90027,3448.0,3447.6,0.0514542]
[1719912311780,2.90027,3448.0,3447.4,2.90072]
[1719912311955,2.90027,3448.0,3447.7,0.05152764]
[1719912312161,2.90027,3448.0,3447.4,2.90072]
[1719912312356,2.90027,3448.0,3447.8,0.05152764]
[1719912312560,2.90027,3448.0,3447.4,2.90072]
[1719912312984,2.90027,3448.0,3447.5,0.05152764]
[1719912313190,8.13798,3448.4,3447.6,2.90055]
[1719912313365,3.72398,3448.3,3447.6,3.58153068]
[1719912313890,3.72398,3448.3,3447.7,0.05151634]
[1719912316367,3.72398,3448.3,3447.7,2.95199634]
[1719912317123,5.238,3448.4,3447.7,2.95199634]
[1719912317405,2.89949,3448.9,3447.7,2.95199634]
[1719912317406,2.2778,3448.9,3448.2,2.90004]
[1719912317904,6.00127,3448.9,3448.3,0.05146266]
[1719912318273,2.2778,3448.9,3448.3,2.95142266]
[1719912318703,5.17727,3448.9,3448.3,2.95142266]
[1719912319095,6.00127,3448.9,3448.3,2.95142266]
[1719912320679,5.17727,3448.9,3448.3,2.95142266]
[1719912320878,5.17727,3448.9,3448.3,2.89996]
[1719912321094,5.17727,3448.9,3448.4,0.05146266]
[1719912321500,2.2778,3448.9,3448.3,2.89996]
[1719912321702,2.2778,3448.9,3448.5,0.05146266]
[1719912321896,2.2778,3448.9,3448.3,2.89996]
[1719912322101,2.2778,3448.9,3448.6,0.05146266]
[1719912322419,2.2778,3448.9,3448.3,2.89996]
[1719912322782,2.2778,3448.9,3448.4,0.05146266]
[1719912323182,2.2778,3448.9,3448.3,2.89996]
[1719912323611,2.2778,3448.9,3448.4,0.05146266]
[1719912323990,2.2778,3448.9,3448.3,2.89996]
[1719912324189,2.2778,3448.9,3448.5,0.05127906]
[1719912324396,2.2778,3448.9,3448.3,2.89996]
[1719912324587,2.2778,3448.9,3448.6,0.05127906]
[1719912324785,2.2778,3448.9,3448.4,2.89988]
[1719912324986,2.2778,3448.9,3448.7,0.05127906]
[1719912325196,2.2778,3448.9,3448.4,2.89988]
[1719912325399,2.2778,3448.9,3448.8,0.05127906]
[1719912325579,2.2778,3448.9,3448.4,2.89988]
[1719912325785,2.2778,3448.9,3448.8,0.05127906]
[1719912326000,2.2778,3448.9,3448.4,2.89988]
[1719912326202,2.2778,3448.9,3448.8,0.05127906]
[1719912326402,2.2778,3448.9,3448.4,2.89988]
[1719912326607,2.2778,3448.9,3448.8,0.05127906]
[1719912326801,2.2778,3448.9,3448.4,2.89988]
[1719912327298,2.2778,3448.9,3448.5,0.05127906]
[1719912327497,0.824,3448.8,3448.5,0.05127906]
[1719912327794,0.824,3448.6,3448.5,0.05127906]
[1719912327993,0.824,3448.6,3448.1,2.90007]
[1719912328306,0.824,3448.6,3448.0,2.9002]
[1719912328497,2.4586,3448.5,3448.2,0.05127906]
[1719912328697,2.4586,3448.5,3448.0,2.9002]
[1719912328893,2.4586,3448.5,3448.3,0.05117172]
[1719912329095,2.4586,3448.5,3448.0,2.9002]
[1719912329283,2.4586,3448.5,3448.4,0.05117172]
[1719912329488,2.4586,3448.5,3448.0,2.9002]
[1719912329489,2.4586,3448.5,3448.1,2.90014]
[1719912329793,2.4586,3448.5,3448.2,0.05117172]
[1719912330111,5.18386,3448.8,3448.2,0.63632289]
[1719912330416,5.18386,3448.8,3448.2,0.05117172]
[1719912330616,0.824,3448.7,3448.2,0.05117172]
[1719912334037,5.18386,3448.8,3448.2,0.05117172]
[1719912334792,5.18386,3448.8,3448.2,2.95122172]
[1719912335283,0.824,3448.9,3448.2,2.95122172]
[1719912335499,3.72342,3449.0,3448.3,3.27008217]
[1719912335697,3.72342,3449.0,3448.4,0.05118019]
[1719912339140,2.495,3448.8,3448.4,0.05118019]
[1719912339520,3.319,3448.8,3448.3,2.89996]
[1719912339859,3.319,3448.8,3448.5,0.05115476]
[1719912340027,3.319,3448.8,3448.3,2.89996]
[1719912340224,3.319,3448.8,3448.6,0.05115476]
[1719912340439,3.319,3448.8,3448.0,2.97518]
[1719912340440,7.13035,3448.8,3448.1,2.90009]
[1719912340642,7.13035,3448.8,3448.7,0.05115476]
[1719912340841,7.13035,3448.8,3448.1,2.90009]
[1719912341041,6.21856,3448.8,3448.7,0.05115476]
[1719912341242,6.21856,3448.8,3448.2,2.90004]
[1719912341833,6.21856,3448.8,3448.3,0.05115476]
[1719912344972,2.89969,3448.7,3448.3,0.05115476]
[1719912345332,2.89969,3448.7,3448.0,2.90015]
[1719912345550,2.89969,3448.7,3448.0,3.280065]
[1719912345750,2.89969,3448.7,3448.1,0.05115476]
[1719912346048,2.89969,3448.7,3448.1,2.95124476]
[1719912347239,2.495,3448.8,3448.1,2.95124476]
[1719912347765,5.39457,3448.8,3448.1,2.95124476]
[1719912347959,5.39457,3448.8,3448.2,0.70553098]
[1719912348369,5.39457,3448.8,3448.3,0.05115476]
[1719912348744,5.39457,3448.8,3448.1,2.90009]
[1719912348946,5.39457,3448.8,3448.4,0.05115476]
[1719912349167,5.39457,3448.8,3448.2,2.90005]
[1719912349349,5.39457,3448.8,3448.5,0.05115476]
[1719912349531,5.39457,3448.8,3448.2,2.90005]
[1719912349736,5.39457,3448.8,3448.6,0.05115476]
[1719912349938,5.39457,3448.8,3448.2,2.90005]
[1719912350184,5.39457,3448.8,3448.7,0.05115476]
[1719912350477,5.39457,3448.8,3448.2,2.90005]
[1719912350652,5.39457,3448.8,3448.7,0.05115476]
[1719912350858,5.39457,3448.8,3448.2,2.90005]
[1719912351041,5.39457,3448.8,3448.2,3.6004615]
[1719912351544,5.39457,3448.8,3448.3,0.05115476]
[1719912355687,5.39457,3448.8,3448.2,2.90005]
[1719912356075,5.39457,3448.8,3448.3,0.05113216]
[1719912356381,5.39457,3448.8,3448.2,2.90005]
[1719912356585,5.39457,3448.8,3448.4,0.05113216]
[1719912356880,2.495,3448.8,3448.2,5.80003]
[1719912357082,2.495,3448.8,3448.3,0.05113216]
[1719912357578,5.32474,3449.1,3448.3,0.05113216]
[1719912357771,2.89942,3449.0,3448.4,2.89988]
[1719912358352,2.89942,3449.0,3448.5,0.05113216]
[1719912367598,4.54445598,3449.0,3448.5,0.05113216]
[1719912367786,1.3227886,3448.9,3448.5,0.05113216]
[1719912368093,1.3227886,3448.8,3448.5,0.05113216]
[1719912368277,0.824,3448.9,3448.5,0.05112911]
[1719912368477,1.32279695,3448.8,3448.5,0.05112911]
[1719912368677,1.8933096,3448.9,3448.5,0.05112911]
[1719912368889,1.32278073,3448.8,3448.5,0.05112911]
[1719912369092,1.8933096,3448.9,3448.5,0.05112911]
[1719912369400,1.32279562,3448.8,3448.5,0.05112911]
[1719912369600,1.8933096,3448.9,3448.5,0.05112911]
[1719912369965,1.32281791,3448.8,3448.5,0.05112911]
[1719912370160,1.8933096,3448.9,3448.5,0.05112911]
[1719912370365,1.32281734,3448.8,3448.5,0.05112911]
[1719912370566,1.8933096,3448.9,3448.5,0.05112911]
[1719912370766,1.32281738,3448.8,3448.5,0.05112911]
[1719912370967,1.8933096,3448.9,3448.5,0.05112911]
[1719912371167,1.32281646,3448.8,3448.5,0.05112911]
[1719912371400,1.8933096,3448.9,3448.5,0.05112911]
[1719912371599,1.32281641,3448.8,3448.5,0.05112911]
[1719912371902,1.8933096,3448.9,3448.5,0.05112911]
[1719912372108,1.32281637,3448.8,3448.5,0.05112911]
[1719912372281,1.8933096,3448.9,3448.5,0.05112911]
[1719912372478,1.32281632,3448.8,3448.5,0.05112911]
[1719912372782,1.8933096,3448.9,3448.5,0.05112911]
[1719912372966,1.32280324,3448.8,3448.5,0.05112911]
[1719912373167,1.8933096,3448.9,3448.5,0.05112911]
[1719912373597,1.32281422,3448.8,3448.5,0.05112911]
[1719912373797,1.8933096,3448.9,3448.5,0.05112911]
[1719912373991,1.32281422,3448.8,3448.5,0.05112911]
[1719912374201,1.8933096,3448.9,3448.5,0.05112911]
[1719912374399,1.32281431,3448.8,3448.5,0.05112911]
[1719912374581,1.8933096,3448.9,3448.5,0.05112911]
[1719912374780,1.32280502,3448.8,3448.5,0.05112911]
[1719912375093,1.8933096,3448.9,3448.5,0.05112911]
[1719912375290,1.3228152,3448.8,3448.5,0.05112911]
[1719912375610,1.8933096,3448.9,3448.5,0.05112911]
[1719912375814,1.3228152,3448.8,3448.5,0.05112911]
[1719912376018,1.8933096,3448.9,3448.5,0.05112911]
[1719912376206,1.3228144,3448.8,3448.5,0.05112911]
[1719912376406,1.8933096,3448.9,3448.5,0.05112911]
[1719912376611,1.32281423,3448.8,3448.5,0.05112911]
[1719912376811,1.8933096,3448.9,3448.5,0.05112911]
[1719912377119,1.32281614,3448.8,3448.5,0.05112911]
[1719912377323,1.8933096,3448.9,3448.5,0.05112911]
[1719912377487,2.06644233,3448.8,3448.5,0.05112911]
[1719912377685,1.32281983,3448.7,3448.5,0.05112911]
[1719912377918,0.74362574,3448.8,3448.5,0.05112911]
[1719912378106,1.32283086,3448.7,3448.5,0.05112911]
[1719912378307,0.74362574,3448.8,3448.5,0.05112911]
[1719912378509,1.3228413,3448.7,3448.5,0.05112911]
[1719912378709,0.74362574,3448.8,3448.2,2.89998]
[1719912379014,1.32283405,3448.7,3448.2,2.89998]
[1719912379191,0.74362574,3448.8,3448.3,0.0508334]
[1719912379492,1.32283473,3448.7,3448.3,0.0508334]
[1719912379695,3.64324574,3448.8,3448.3,0.0508334]
[1719912379906,7.05094605,3448.7,3448.3,0.0508334]
[1719912380093,6.18201,3448.7,3448.0,2.97518]
[1719912380292,6.18201,3448.7,3448.4,0.05080516]
[1719912380641,2.89983,3448.5,3447.9,2.9003]
[1719912381503,3.72383,3448.5,3447.9,2.9003]
[1719912382522,2.8999,3448.4,3447.9,2.9003]
[1719912387133,2.89981,3448.5,3447.9,2.9003]
[1719912387549,2.89981,3448.5,3448.0,0.05091528]
[1719912388745,2.89952,3448.9,3448.1,2.90011]
[1719912388929,2.89952,3448.9,3448.3,3.72395]
[1719912389112,2.89952,3448.9,3448.4,0.05091528]
[1719912389616,2.89952,3448.9,3448.5,0.05091528]
[1719912389817,2.89952,3448.9,3448.3,2.89995]
[1719912390019,2.89952,3448.9,3448.6,0.05091528]
[1719912390268,2.89952,3448.9,3448.3,2.89995]
[1719912390427,2.89952,3448.9,3448.7,0.05091528]
[1719912390628,3.790256,3448.9,3448.3,2.89995]
[1719912390938,6.00789,3449.0,3448.8,0.05091528]
[1719912391119,6.00789,3449.0,3448.3,2.89995]
[1719912391320,6.00789,3449.0,3448.4,0.05091528]
[1719912400129,6.00789,3449.0,3448.4,2.95079528]
[1719912401577,3.1085,3449.0,3448.4,2.95079528]
[1719912403374,0.890722,3448.9,3448.4,2.95079528]
[1719912403967,3.1085,3449.0,3448.4,2.95079528]
[1719912410763,3.1085,3449.0,3448.5,2.8998]
[1719912411145,3.1085,3449.0,3448.6,0.0507769]
[1719912412043,10.30146984,3449.3,3448.6,3.0254369]
[1719912412252,7.40229984,3449.3,3448.8,2.89954]
[1719912412453,2.3756,3449.4,3448.7,2.89957]
[1719912412637,2.3756,3449.4,3448.9,5.79883]
[1719912412968,2.3756,3449.4,3449.0,2.89937]
[1719912413167,3.1996,3449.4,3449.0,2.89937]
[1719912413338,3.1996,3449.4,3449.1,0.05079101]
[1719912413739,3.1996,3449.4,3449.0,2.89937]
[1719912414366,3.1996,3449.4,3449.1,0.05079101]
[1719912414767,3.1996,3449.4,3449.0,2.89937]
[1719912415281,3.1996,3449.4,3449.1,0.05079101]
[1719912415479,3.1996,3449.4,3448.8,2.89948]
[1719912415695,3.1996,3449.4,3449.2,0.05079101]
[1719912415982,0.60985,3449.3,3448.8,2.89948]
[1719912416184,3.1996,3449.4,3448.8,2.89948]
[1719912419703,0.824,3449.2,3448.6,2.97467]
[1719912420349,0.824,3449.2,3448.6,5.87432]
[1719912420662,0.824,3449.2,3448.6,2.97465]
[1719912422691,0.824,3449.2,3448.6,2.89965]
[1719912425014,2.89932,3449.1,3448.4,5.87465]
[1719912425302,2.89932,3449.1,3448.7,0.05068091]
[1719912425501,2.89932,3449.1,3448.5,2.8998]
[1719912425774,2.89932,3449.1,3448.8,0.05068091]
[1719912425912,2.89932,3449.1,3448.5,2.8998]
[1719912426083,2.89932,3449.1,3448.9,0.05068091]
[1719912426282,3.799135,3449.1,3448.5,2.8998]
[1719912426487,2.89932,3449.1,3449.0,0.05068091]
[1719912426680,2.89932,3449.1,3448.5,2.8998]
[1719912426913,2.89932,3449.1,3449.0,0.05068091]
[1719912427083,2.89932,3449.1,3448.5,2.8998]
[1719912427283,2.89932,3449.1,3449.0,0.05068091]
[1719912427505,3.799135,3449.1,3448.5,2.8998]
[1719912427706,2.89932,3449.1,3449.0,0.05068091]
[1719912427905,2.89932,3449.1,3448.5,2.8998]
[1719912428100,5.33472,3449.1,3449.0,0.05068091]
[1719912428312,5.33472,3449.1,3448.5,2.8998]
[1719912428498,5.33472,3449.1,3449.0,0.05068091]
[1719912428800,6.240515,3449.1,3449.0,0.05068091]
[1719912429003,6.240515,3449.1,3448.5,2.8998]
[1719912429200,5.33472,3449.1,3448.6,0.05068091]
[1719912432294,2.89923,3449.2,3448.6,0.05068091]
[1719912432494,2.89923,3449.2,3448.6,2.95038091]
[1719912437549,6.08798,3449.4,3448.6,2.95038091]
[1719912437755,6.08798,3449.4,3448.6,5.85002091]
[1719912437915,6.08798,3449.4,3448.6,5.79934]
[1719912438103,2.89915,3449.3,3448.7,0.05064421]
[1719912439452,2.89915,3449.3,3448.7,2.95026421]
[1719912440231,2.89923,3449.2,3448.7,0.05064421]
[1719912440436,3.72323,3449.2,3448.7,0.05064421]
[1719912444555,6.62252,3449.2,3448.7,0.05064421]
[1719912445170,2.89931,3449.1,3448.7,0.05064421]
[1719912447923,3.1927,3449.0,3448.7,0.05064421]
[1719912448157,2.89955,3448.8,3448.7,0.05064421]
[1719912448359,2.89955,3448.8,3448.2,5.79998]
[1719912448844,2.89955,3448.8,3448.3,0.04721904]
[1719912455539,2.89955,3448.8,3448.3,2.94718904]
[1719912457866,6.09211,3449.0,3448.3,2.94718904]
[1719912458034,5.26811,3449.0,3448.3,3.62180694]
[1719912458353,13.46479984,3449.4,3448.6,2.9747]
[1719912458753,13.46479984,3449.4,3448.7,0.04600478]
[1719912459270,2.89914,3449.3,3448.7,0.04600478]
[1719912460345,2.89914,3449.3,3448.7,2.94563478]
[1719912461182,10.56569984,3449.4,3448.7,2.94563478]
[1719912461494,9.74169984,3449.4,3448.7,2.94563478]
[1719912461694,13.46474984,3449.4,3448.7,2.94563478]
[1719912463850,6.06245,3449.4,3448.7,2.94563478]
[1719912464052,6.06245,3449.4,3448.7,2.89963]
[1719912464369,0.824,3449.2,3448.8,0.04589187]
[1719912469683,0.824,3449.2,3448.8,2.94544187]
[1719912469885,2.89879,3449.8,3449.1,2.8993]
[1719912470090,0.824,3449.4,3449.1,2.8993]
[1719912470287,0.824,3449.4,3449.2,0.04589187]
[1719912470953,0.824,3449.4,3449.1,2.8993]